{"text_format":"1","workbook":"xlsx","n_sheets":5,"sheets":["1.표지","2.신청서","(붙임)기업연계교과목 목록","교과목시트","데이터"],"not_rendered":{"charts":0,"images":0,"macros":1,"external_links":0,"defined_names":7,"comments":0,"pivot_tables":0},"unopened":[],"bounds":{"document_bytes":16777216,"sheet_cells":100000,"rows_first":2000,"rows_last":500,"rows_between":2000,"halvings":0,"cell_chars":16384,"cell_head_chars":4096},"cells_cut":0,"cells_raw":0,"read":"whole","date_system":"1900"}

{"sheet":"1.표지","index":0,"n_rows":30,"n_cols":6,"rows_kept":30,"cut":false,"hidden":false,"merged":[[29,2,29,5],[25,4,25,5],[5,2,12,5],[28,3,28,5],[21,4,21,5],[22,4,22,5],[23,4,23,5],[24,4,24,5]]}
[]
[]
[]
[]
[]
[null,null,"반도체특성화트랙\n2024년 9월 이수 신청서"]
[]
[]
[]
[]
[]
[]
[]
[]
[]
[]
[]
[]
[]
[]
[]
[null,null,null,"학번"]
[null,null,null,"이름"]
[null,null,null,"전공"]
[null,null,null,"세부전공"]
[null,null,null,"트랙",{"$f":"IF(E25=\"\",\"\",IF(E25=\"전자\",\"지능형반도체트랙\",IF(E25=\"전기\",\"전력반도체시스템트랙\",IF(E25=\"정보통신\",\"지능형시스템트랙\",IF(E25=\"에너지신소재공학\",\"반도체소재트랙\",IF(E25=\"화학생명공학\",\"반도체화학트랙\",IF(E25=\"기계공학부\",\"반도체기계트랙\",IF(E24=\"메카트로닉스공학부\",\"반도체장비트랙\",\"\"))))))))","v":""}]
[]
[null,null,null,"신청자",null,"(서명)"]
[]
[null,null,"다음과 같이 트랙 이수를 신청합니다."]

{"sheet":"2.신청서","index":1,"n_rows":47,"n_cols":60,"rows_kept":47,"cut":false,"hidden":false,"merged":[[2,10,2,12],[23,11,23,12],[46,5,46,6],[28,11,28,12],[29,11,29,12],[43,5,43,6],[44,5,44,6],[45,5,45,6],[42,5,42,6],[42,7,42,8],[43,7,43,8],[44,7,44,8],[45,7,45,8],[30,2,30,6],[25,11,25,12],[26,11,26,12],[27,11,27,12],[46,7,46,8],[24,11,24,12],[3,5,3,6],[4,5,4,6],[20,11,20,12],[21,11,21,12],[22,11,22,12],[16,11,16,12],[3,10,3,12],[4,10,4,12],[5,10,5,12],[1,55,2,59],[5,15,5,16],[6,15,6,16],[1,19,2,23],[1,25,2,29],[1,31,2,35],[1,37,2,41],[1,43,2,47],[2,15,2,16],[1,49,2,53],[3,2,6,4],[6,5,6,6],[5,5,5,6],[6,10,6,12],[9,2,29,2],[8,11,8,12],[9,11,9,12],[14,11,14,12],[15,11,15,12],[17,11,17,12],[18,11,18,12],[19,11,19,12],[10,11,10,12],[11,11,11,12],[12,11,12,12],[13,11,13,12]]}
[]
[null,null,null,null,null,null,null,null,null,null,null,null,null,null,null,null,null,null,null,"지능형반도체트랙",null,null,null,null,null,"지능형시스템트랙",null,null,null,null,null,"전력반도체시스템트랙",null,null,null,null,null,"반도체소재트랙",null,null,null,null,null,"반도체화학트랙",null,null,null,null,null,"반도체기계트랙",null,null,null,null,null,"반도체장비트랙"]
[null,null,null,null,null,null,null,null,null,"학번",{"$f":"IF('1.표지'!E22=0,\"\",'1.표지'!E22)","v":""},null,null,null,null,"개설학부선택"]
[null,null,"반도체특성화트랙 이수조건",null,null,"15학점 이상",null,null,null,"이름",{"$f":"IF('1.표지'!E23=0,\"\",'1.표지'!E23)","v":""},null,null,null,null,"전     공","세부 전공",null,null,"세부전공","교과목명","교과목코드","학점",null,null,"세부전공","교과목명","교과목코드","학점",null,null,"세부전공","교과목명","교과목코드","학점",null,null,"학부","교과목명","교과목코드","학점",null,null,"세부전공","교과목명","교과목코드","학점",null,null,"학부","교과목명","교과목코드","학점",null,null,"학부","교과목명","교과목코드","학점"]
[null,null,null,null,null,"트랙교과목 평점 3.2 이상",null,null,null,"전공",{"$f":"IF('1.표지'!E24=0,\"\",'1.표지'!E24)","v":""},null,null,null,null,{"$f":"IFERROR(VLOOKUP(P7,데이터!$K$1:$M$8,2,FALSE),\"\")","v":""},{"$f":"IFERROR(VLOOKUP(P7,데이터!$K$1:$M$8,3,FALSE),\"\")","v":""},null,null,"전자","전자공학실습","IFB223",2,"클  릭",null,"정보통신","회로이론","IFC122",3,"클  릭",null,"전기","전기자기학Ⅰ","IFA141",3,"클  릭",null,"신소재","재료과학1","MSA251",3,"클  릭",null,"화학생명","물리화학및실습","CHA450",3,"클  릭",null,"기계","기계공작법","MEC372",3,"클  릭",null,"메카","재료역학","MTB302",3,"클  릭"]
[null,null,null,null,null,"전공교과목 중 기업연계교과목 2과목 이상 이수",null,null,null,"세부전공",{"$f":"IF('1.표지'!E25=0,\"\",'1.표지'!E25)","v":""},null,null,null,null,"트        랙",null,null,null,"전자","회로이론","IFB120",3,"클  릭",null,"정보통신","회로이론실습","IFC125",1,"클  릭",null,"전기","전기공학실습Ⅰ","IFA243",3,"클  릭",null,"신소재","재료공학실습1","MSA265",3,"클  릭",null,"화학생명","유기화학및실습1","CHA141",3,"클  릭",null,"기계","열역학","MEB331",3,"클  릭",null,"메카","열역학","MTB492",2,"클  릭"]
[null,null,null,null,null,"(산업체취창업특강도 기업연계교과목으로 인정됨)",null,null,null,"트랙",{"$f":"IF('1.표지'!E26=0,\"\",'1.표지'!E26)","v":""},null,null,null,null,null,null,null,null,"전자","디지털공학및실습","IFB163",3,"클  릭",null,"정보통신","기초ICT공학및실습","IFC511",3,"클  릭",null,"전기","교류회로이론","IFA260",3,"클  릭",null,"신소재","CAD실습","MSA221",2,"클  릭",null,"화학생명","분석화학","CHA131",3,"클  릭",null,"기계","재료역학","MEB311",3,"클  릭",null,"메카","열역학","MTB493",3,"클  릭"]
[null,null,null,null,null,null,null,null,null,null,null,null,null,null,null,null,null,null,null,"전자","반도체소자","IFE240",3,"클  릭",null,"정보통신","인터네트워킹실습","IFC374",2,"클  릭",null,"전기","디지틀공학","IFA131",3,"클  릭",null,"신소재","기초전기전자실습","MSA919",3,"클  릭",null,"화학생명","공학수학","BSM091",3,"클  릭",null,"기계","공학수학1","CCT610",3,"클  릭",null,"메카","반도체소자","MTS110",3,"클  릭"]
[null,null,"구분","이수년도","이수학기","세부전공","교과목명","교과목코드","학점","이수학점","환산학점","기업연계교과목",null,null,null,null,null,null,null,"전자","전자회로","IFB150",3,"클  릭",null,"정보통신","전자회로및실습","IFC163",4,"클  릭",null,"전기","전기공학실습2","IFA253",3,"클  릭",null,"신소재","재료과학2","MSA312",3,"클  릭",null,"화학생명","유기화학및실습Ⅱ","CHA151",3,"클  릭",null,"기계","동역학","MEB321",3,"클  릭",null,"메카","인공지능개론","MTB570",3,"클  릭"]
[null,null,"이수과목",null,null,null,null,null,null,null,{"$f":"IF(I10=\"-\",\"-\",IFERROR(VLOOKUP(J10,데이터!$H$2:$I$13,2,FALSE),\"\"))","v":""},{"$f":"IF(OR(J10=\"UNPASS\", J10=\"F\"), \"\", IF(OR(G10=\"산업체취창업특강\", AND(ISNUMBER(MATCH(1, ('(붙임)기업연계교과목 목록'!$B$3:$B$38=D10) * ('(붙임)기업연계교과목 목록'!$C$3:$C$38=E10) * ('(붙임)기업연계교과목 목록'!$D$3:$D$38=G10), 0)))), \"O\", \"\"))","v":""},null,null,"지우기",null,null,null,null,"전자","디지털시스템설계및실습","IFB172",3,"클  릭",null,"정보통신","마이크로프로세서및실습","IFC181",3,"클  릭",null,"전기","전자회로","IFA151",3,"클  릭",null,"신소재","재료물리학","MSA981",3,"클  릭",null,"화학생명","유체공학및실습","CHA421",3,"클  릭",null,"기계","공학수학2","CCT620",3,"클  릭",null,"메카","회로이론및실습","MTF294",3,"클  릭"]
[null,null,null,null,null,null,null,null,null,null,{"$f":"IF(I11=\"-\",\"-\",IFERROR(VLOOKUP(J11,데이터!$H$2:$I$13,2,FALSE),\"\"))","v":""},{"$f":"IF(OR(J11=\"UNPASS\", J11=\"F\"), \"\", IF(OR(G11=\"산업체취창업특강\", AND(ISNUMBER(MATCH(1, ('(붙임)기업연계교과목 목록'!$B$3:$B$38=D11) * ('(붙임)기업연계교과목 목록'!$C$3:$C$38=E11) * ('(붙임)기업연계교과목 목록'!$D$3:$D$38=G11), 0)))), \"O\", \"\"))","v":""},null,null,"지우기",null,null,null,null,"전자","회로망이론","IFB500",3,"클  릭",null,"정보통신","통신공학","IFC200",3,"클  릭",null,"전기","제어공학","IFA440",3,"클  릭",null,"신소재","재료열역학","MSA240",3,"클  릭",null,"화학생명","재료화학","CHA950",3,"클  릭",null,"기계","기초제어실습","MEC250",2,"클  릭",null,"메카","동역학","MTB325",3,"클  릭"]
[null,null,null,null,null,null,null,null,null,null,{"$f":"IF(I12=\"-\",\"-\",IFERROR(VLOOKUP(J12,데이터!$H$2:$I$13,2,FALSE),\"\"))","v":""},{"$f":"IF(OR(J12=\"UNPASS\", J12=\"F\"), \"\", IF(OR(G12=\"산업체취창업특강\", AND(ISNUMBER(MATCH(1, ('(붙임)기업연계교과목 목록'!$B$3:$B$38=D12) * ('(붙임)기업연계교과목 목록'!$C$3:$C$38=E12) * ('(붙임)기업연계교과목 목록'!$D$3:$D$38=G12), 0)))), \"O\", \"\"))","v":""},null,null,"지우기",null,null,null,null,"전자","통신공학","IFB201",3,"클  릭",null,"정보통신","디지털통신및실습","IFC251",3,"클  릭",null,"전기","전기자기학Ⅱ","IFA155",3,"클  릭",null,"신소재","재료공학실습2","MSA305",3,"클  릭",null,"화학생명","기기분석및실습","CHA202",3,"클  릭",null,"기계","유체역학","MEB341",3,"클  릭",null,"메카","유체역학","MTD843",3,"클  릭"]
[null,null,null,null,null,null,null,null,null,null,{"$f":"IF(I13=\"-\",\"-\",IFERROR(VLOOKUP(J13,데이터!$H$2:$I$13,2,FALSE),\"\"))","v":""},{"$f":"IF(OR(J13=\"UNPASS\", J13=\"F\"), \"\", IF(OR(G13=\"산업체취창업특강\", AND(ISNUMBER(MATCH(1, ('(붙임)기업연계교과목 목록'!$B$3:$B$38=D13) * ('(붙임)기업연계교과목 목록'!$C$3:$C$38=E13) * ('(붙임)기업연계교과목 목록'!$D$3:$D$38=G13), 0)))), \"O\", \"\"))","v":""},null,null,"지우기",null,null,null,null,"전자","마이크로프로세서및실습","IFB412",3,"클  릭",null,"정보통신","통신신호처리및실습","IFC231",3,"클  릭",null,"전기","마이크로프로세서및실습","IFA182",3,"클  릭",null,"신소재","재료기기분석및실습","MSA874",3,"클  릭",null,"화학생명","화공열역학","CHA432",3,"클  릭",null,"기계","기계재료학","MEC366",2,"클  릭",null,"메카","유체역학","MTD844",2,"클  릭"]
[null,null,null,null,null,null,null,null,null,null,{"$f":"IF(I14=\"-\",\"-\",IFERROR(VLOOKUP(J14,데이터!$H$2:$I$13,2,FALSE),\"\"))","v":""},{"$f":"IF(OR(J14=\"UNPASS\", J14=\"F\"), \"\", IF(OR(G14=\"산업체취창업특강\", AND(ISNUMBER(MATCH(1, ('(붙임)기업연계교과목 목록'!$B$3:$B$38=D14) * ('(붙임)기업연계교과목 목록'!$C$3:$C$38=E14) * ('(붙임)기업연계교과목 목록'!$D$3:$D$38=G14), 0)))), \"O\", \"\"))","v":""},null,null,"지우기",null,null,null,null,"전자","고급전자회로","IFB270",3,"클  릭",null,"정보통신","컴퓨터비전및실습","IFC560",3,"클  릭",null,"전기","전력전자공학및실습","IFA301",3,"클  릭",null,"신소재","산업체취창업특강","MSA100",2,"클  릭",null,"화학생명","반도체소재개론","CHA500",3,"클  릭",null,"기계","기계요소설계","MEC441",3,"클  릭",null,"메카","디지털회로설계및실습","MCA285",3,"클  릭"]
[null,null,null,null,null,null,null,null,null,null,{"$f":"IF(I15=\"-\",\"-\",IFERROR(VLOOKUP(J15,데이터!$H$2:$I$13,2,FALSE),\"\"))","v":""},{"$f":"IF(OR(J15=\"UNPASS\", J15=\"F\"), \"\", IF(OR(G15=\"산업체취창업특강\", AND(ISNUMBER(MATCH(1, ('(붙임)기업연계교과목 목록'!$B$3:$B$38=D15) * ('(붙임)기업연계교과목 목록'!$C$3:$C$38=E15) * ('(붙임)기업연계교과목 목록'!$D$3:$D$38=G15), 0)))), \"O\", \"\"))","v":""},null,null,"지우기",null,null,null,null,"전자","광전자공학","IFB440",3,"클  릭",null,"정보통신","임베디드응용및실습","IFC415",3,"클  릭",null,"전기","자동화공학및실습","IFA353",3,"클  릭",null,"신소재","결정구조학","ENE311",3,"클  릭",null,"화학생명","열물질전달및실습","CHA712",3,"클  릭",null,"기계","기초기계공학실험","MEB400",2,"클  릭",null,"메카","마이크로프로세서및실습1","MTB428",3,"클  릭"]
[null,null,null,null,null,null,null,null,null,null,{"$f":"IF(I16=\"-\",\"-\",IFERROR(VLOOKUP(J16,데이터!$H$2:$I$13,2,FALSE),\"\"))","v":""},{"$f":"IF(OR(J16=\"UNPASS\", J16=\"F\"), \"\", IF(OR(G16=\"산업체취창업특강\", AND(ISNUMBER(MATCH(1, ('(붙임)기업연계교과목 목록'!$B$3:$B$38=D16) * ('(붙임)기업연계교과목 목록'!$C$3:$C$38=E16) * ('(붙임)기업연계교과목 목록'!$D$3:$D$38=G16), 0)))), \"O\", \"\"))","v":""},null,null,"지우기",null,null,null,null,"전자","반도체공정및실습","IFE551",3,"클  릭",null,"정보통신","IoT무선네트워크","IFC422",3,"클  릭",null,"전기","공학설계","IFA475",1,"클  릭",null,"신소재","전자기재료학1","MSA382",3,"클  릭",null,"화학생명","고분자공학및실습Ⅰ","CHA210",3,"클  릭",null,"기계","수치해석및실습","MEB600",3,"클  릭",null,"메카","기계제어공학Ⅰ","MEC451",3,"클  릭"]
[null,null,null,null,null,null,null,null,null,null,{"$f":"IF(I17=\"-\",\"-\",IFERROR(VLOOKUP(J17,데이터!$H$2:$I$13,2,FALSE),\"\"))","v":""},{"$f":"IF(OR(J17=\"UNPASS\", J17=\"F\"), \"\", IF(OR(G17=\"산업체취창업특강\", AND(ISNUMBER(MATCH(1, ('(붙임)기업연계교과목 목록'!$B$3:$B$38=D17) * ('(붙임)기업연계교과목 목록'!$C$3:$C$38=E17) * ('(붙임)기업연계교과목 목록'!$D$3:$D$38=G17), 0)))), \"O\", \"\"))","v":""},null,null,"지우기",null,null,null,null,"전자","디지털신호처리및실습","IFB296",4,"클  릭",null,"정보통신","사물인터넷및실습","IFC486",3,"클  릭",null,"전기","임베디드응용및실습","IFA193",3,"클  릭",null,"신소재","반도체소자","MSA765",3,"클  릭",null,"화학생명","산업체취창업특강","CHA960",2,"클  릭",null,"기계","열전달","MEC431",3,"클  릭",null,"메카","반도체공정및실습","CCT348",3,"클  릭"]
[null,null,null,null,null,null,null,null,null,null,{"$f":"IF(I18=\"-\",\"-\",IFERROR(VLOOKUP(J18,데이터!$H$2:$I$13,2,FALSE),\"\"))","v":""},{"$f":"IF(OR(J18=\"UNPASS\", J18=\"F\"), \"\", IF(OR(G18=\"산업체취창업특강\", AND(ISNUMBER(MATCH(1, ('(붙임)기업연계교과목 목록'!$B$3:$B$38=D18) * ('(붙임)기업연계교과목 목록'!$C$3:$C$38=E18) * ('(붙임)기업연계교과목 목록'!$D$3:$D$38=G18), 0)))), \"O\", \"\"))","v":""},null,null,"지우기",null,null,null,null,"전자","디지털신호처리및실습","IFB294",4,"클  릭",null,"정보통신","무선통신","IFC357",3,"클  릭",null,"전기","제어시스템설계","IFA291",3,"클  릭",null,"신소재","에너지소자기초및실습","ENE332",3,"클  릭",null,"화학생명","전기화학","CHA630",3,"클  릭",null,"기계","열유체공학실험","MEC402",2,"클  릭",null,"메카","로봇기구설계및해석","MTC620",3,"클  릭"]
[null,null,null,null,null,null,null,null,null,null,{"$f":"IF(I19=\"-\",\"-\",IFERROR(VLOOKUP(J19,데이터!$H$2:$I$13,2,FALSE),\"\"))","v":""},{"$f":"IF(OR(J19=\"UNPASS\", J19=\"F\"), \"\", IF(OR(G19=\"산업체취창업특강\", AND(ISNUMBER(MATCH(1, ('(붙임)기업연계교과목 목록'!$B$3:$B$38=D19) * ('(붙임)기업연계교과목 목록'!$C$3:$C$38=E19) * ('(붙임)기업연계교과목 목록'!$D$3:$D$38=G19), 0)))), \"O\", \"\"))","v":""},null,null,"지우기",null,null,null,null,"전자","공학설계","IFB385",1,"클  릭",null,"정보통신","공학설계","IFC444",1,"클  릭",null,"전기","전동기구동및실습","IFA361",3,"클  릭",null,"신소재","표면공학및실습","MSA631",3,"클  릭",null,"화학생명","에너지열역학","CHA702",3,"클  릭",null,"기계","반도체공정및실습","MES510",3,"클  릭",null,"메카","전자회로응용및실습","MCA382",3,"클  릭"]
[null,null,null,null,null,null,null,null,null,null,{"$f":"IF(I20=\"-\",\"-\",IFERROR(VLOOKUP(J20,데이터!$H$2:$I$13,2,FALSE),\"\"))","v":""},{"$f":"IF(OR(J20=\"UNPASS\", J20=\"F\"), \"\", IF(OR(G20=\"산업체취창업특강\", AND(ISNUMBER(MATCH(1, ('(붙임)기업연계교과목 목록'!$B$3:$B$38=D20) * ('(붙임)기업연계교과목 목록'!$C$3:$C$38=E20) * ('(붙임)기업연계교과목 목록'!$D$3:$D$38=G20), 0)))), \"O\", \"\"))","v":""},null,null,"지우기",null,null,null,null,"전자","졸업설계","IFA495",6,"클  릭",null,"정보통신","이동통신","IFC341",3,"클  릭",null,"전기","전기신호처리","IFA620",3,"클  릭",null,"신소재","나노기술과재료","MSA520",3,"클  릭",null,"화학생명","에너지소재분석및실습","CHA601",3,"클  릭",null,"기계","마이크로시스템설계","MEF511",3,"클  릭",null,"메카","기계요소설계","MTB419",3,"클  릭"]
[null,null,null,null,null,null,null,null,null,null,{"$f":"IF(I21=\"-\",\"-\",IFERROR(VLOOKUP(J21,데이터!$H$2:$I$13,2,FALSE),\"\"))","v":""},{"$f":"IF(OR(J21=\"UNPASS\", J21=\"F\"), \"\", IF(OR(G21=\"산업체취창업특강\", AND(ISNUMBER(MATCH(1, ('(붙임)기업연계교과목 목록'!$B$3:$B$38=D21) * ('(붙임)기업연계교과목 목록'!$C$3:$C$38=E21) * ('(붙임)기업연계교과목 목록'!$D$3:$D$38=G21), 0)))), \"O\", \"\"))","v":""},null,null,"지우기",null,null,null,null,"전자","반도체장비공학","IFE610",3,"클  릭",null,"정보통신","산업체취창업특강","IFE131",1,"클  릭",null,"전기","졸업설계","IFA495",6,"클  릭",null,"신소재","전자기재료학2","MSA931",3,"클  릭",null,"화학생명","분리·공정제어","CHA476",3,"클  릭",null,"기계","산업체취창업특강","MEC960",1,"클  릭",null,"메카","반도체장비공학","MTS100",3,"클  릭"]
[null,null,null,null,null,null,null,null,null,null,{"$f":"IF(I22=\"-\",\"-\",IFERROR(VLOOKUP(J22,데이터!$H$2:$I$13,2,FALSE),\"\"))","v":""},{"$f":"IF(OR(J22=\"UNPASS\", J22=\"F\"), \"\", IF(OR(G22=\"산업체취창업특강\", AND(ISNUMBER(MATCH(1, ('(붙임)기업연계교과목 목록'!$B$3:$B$38=D22) * ('(붙임)기업연계교과목 목록'!$C$3:$C$38=E22) * ('(붙임)기업연계교과목 목록'!$D$3:$D$38=G22), 0)))), \"O\", \"\"))","v":""},null,null,"지우기",null,null,null,null,"전자","산업체취창업특강","IFE131",1,"클  릭",null,"정보통신","머신러닝","IFC550",3,"클  릭",null,"전기","무선전력전송이해및기초설계","IFA640",3,"클  릭",null,"신소재","반도체공정및실습","MSA911",3,"클  릭",null,"화학생명","화학반응공학","CHA470",3,"클  릭",null,"기계","PLC제어및응용","MEH361",3,"클  릭",null,"메카","제조인공지능","MTC630",3,"클  릭"]
[null,null,null,null,null,null,null,null,null,null,{"$f":"IF(I23=\"-\",\"-\",IFERROR(VLOOKUP(J23,데이터!$H$2:$I$13,2,FALSE),\"\"))","v":""},{"$f":"IF(OR(J23=\"UNPASS\", J23=\"F\"), \"\", IF(OR(G23=\"산업체취창업특강\", AND(ISNUMBER(MATCH(1, ('(붙임)기업연계교과목 목록'!$B$3:$B$38=D23) * ('(붙임)기업연계교과목 목록'!$C$3:$C$38=E23) * ('(붙임)기업연계교과목 목록'!$D$3:$D$38=G23), 0)))), \"O\", \"\"))","v":""},null,null,"지우기",null,null,null,null,"전자","디스플레이공학","IFE570",3,"클  릭",null,"정보통신","RF회로설계","IFE450",3,"클  릭",null,"전기","산업체취창업특강","IFE131",1,"클  릭",null,"신소재","플라즈마공학","MSA960",3,"클  릭",null,"화학생명","무기화학1","CHA691",3,"클  릭",null,"기계","정밀금형설계","MEF741",3,"클  릭",null,"메카","기계진동학","MTB433",3,"클  릭"]
[null,null,null,null,null,null,null,null,null,null,{"$f":"IF(I24=\"-\",\"-\",IFERROR(VLOOKUP(J24,데이터!$H$2:$I$13,2,FALSE),\"\"))","v":""},{"$f":"IF(OR(J24=\"UNPASS\", J24=\"F\"), \"\", IF(OR(G24=\"산업체취창업특강\", AND(ISNUMBER(MATCH(1, ('(붙임)기업연계교과목 목록'!$B$3:$B$38=D24) * ('(붙임)기업연계교과목 목록'!$C$3:$C$38=E24) * ('(붙임)기업연계교과목 목록'!$D$3:$D$38=G24), 0)))), \"O\", \"\"))","v":""},null,null,"지우기",null,null,null,null,"전전통공통","전자회로응용및실습","IFA630","-","클  릭",null,"전전통공통","전자회로응용및실습","IFA630","-","클  릭",null,"전기","(인턴및)HRD현장실습","CCT015",2,"클  릭",null,"화학생명","유기화학및실습Ⅱ","CHA151","-","클  릭",null,"화학생명","화학공정설계및실습","CHA411",3,"클  릭",null,"기계","반도체패키징","MES530",3,"클  릭",null,"메카","센서및계측공학","MCA658",3,"클  릭"]
[null,null,null,null,null,null,null,null,null,null,{"$f":"IF(I25=\"-\",\"-\",IFERROR(VLOOKUP(J25,데이터!$H$2:$I$13,2,FALSE),\"\"))","v":""},{"$f":"IF(OR(J25=\"UNPASS\", J25=\"F\"), \"\", IF(OR(G25=\"산업체취창업특강\", AND(ISNUMBER(MATCH(1, ('(붙임)기업연계교과목 목록'!$B$3:$B$38=D25) * ('(붙임)기업연계교과목 목록'!$C$3:$C$38=E25) * ('(붙임)기업연계교과목 목록'!$D$3:$D$38=G25), 0)))), \"O\", \"\"))","v":""},null,null,"지우기",null,null,null,null,"전기","전기자기학Ⅱ","IFA155","-","클  릭",null,"전기","전기자기학Ⅱ","IFA155","-","클  릭",null,"전기","(인턴및)HRD현장실습","IPP200",2,"클  릭",null,"화학생명","고분자공학및실습Ⅰ","CHA210","-","클  릭",null,"화학생명","스마트소재","CHA243",3,"클  릭",null,"기계","마이크로나노생산","MEE460",3,"클  릭",null,"메카","반도체미세기계가공","MTS420",3,"클  릭"]
[null,null,null,null,null,null,null,null,null,null,{"$f":"IF(I26=\"-\",\"-\",IFERROR(VLOOKUP(J26,데이터!$H$2:$I$13,2,FALSE),\"\"))","v":""},{"$f":"IF(OR(J26=\"UNPASS\", J26=\"F\"), \"\", IF(OR(G26=\"산업체취창업특강\", AND(ISNUMBER(MATCH(1, ('(붙임)기업연계교과목 목록'!$B$3:$B$38=D26) * ('(붙임)기업연계교과목 목록'!$C$3:$C$38=E26) * ('(붙임)기업연계교과목 목록'!$D$3:$D$38=G26), 0)))), \"O\", \"\"))","v":""},null,null,"지우기",null,null,null,null,null,null,null,null,null,null,"전자","광전자공학","IFB440","-","클  릭",null,"전전통공통","전자회로응용및실습","IFA630","-","클  릭",null,"화학생명","반도체소재개론","CHA500","-","클  릭",null,"신소재","반도체소자","MSA765","-","클  릭",null,"기계","반도체장비공학","MES520",3,"클  릭",null,"메카","센서및액추에이터실험","MCA657",2,"클  릭"]
[null,null,null,null,null,null,null,null,null,null,{"$f":"IF(I27=\"-\",\"-\",IFERROR(VLOOKUP(J27,데이터!$H$2:$I$13,2,FALSE),\"\"))","v":""},{"$f":"IF(OR(J27=\"UNPASS\", J27=\"F\"), \"\", IF(OR(G27=\"산업체취창업특강\", AND(ISNUMBER(MATCH(1, ('(붙임)기업연계교과목 목록'!$B$3:$B$38=D27) * ('(붙임)기업연계교과목 목록'!$C$3:$C$38=E27) * ('(붙임)기업연계교과목 목록'!$D$3:$D$38=G27), 0)))), \"O\", \"\"))","v":""},null,null,"지우기",null,null,null,null,null,null,null,null,null,null,"전자","디스플레이공학","IFE570","-","클  릭",null,"전자","디스플레이공학","IFE570","-","클  릭",null,"공통","유기고분자소재및실습","CHA401","-","클  릭",null,"신소재","표면공학및실습","MSA631","-","클  릭",null,"기계공통","스마트재료응용","MEE451","-","클  릭",null,"메카","메카니즘설계및실습","MCA640",3,"클  릭"]
[null,null,null,null,null,null,null,null,null,null,{"$f":"IF(I28=\"-\",\"-\",IFERROR(VLOOKUP(J28,데이터!$H$2:$I$13,2,FALSE),\"\"))","v":""},{"$f":"IF(OR(J28=\"UNPASS\", J28=\"F\"), \"\", IF(OR(G28=\"산업체취창업특강\", AND(ISNUMBER(MATCH(1, ('(붙임)기업연계교과목 목록'!$B$3:$B$38=D28) * ('(붙임)기업연계교과목 목록'!$C$3:$C$38=E28) * ('(붙임)기업연계교과목 목록'!$D$3:$D$38=G28), 0)))), \"O\", \"\"))","v":""},null,null,"지우기",null,null,null,null,null,null,null,null,null,null,null,null,null,null,null,null,"전자","광전자공학","IFB440","-","클  릭",null,"공통","자동차재료학","MSA692","-","클  릭",null,"신소재","반도체공정및실습","MSA911","-","클  릭",null,"기계공통","자동차공학실습","MEC220","-","클  릭",null,"메카","반도체패키징","MTS120",3,"클  릭"]
[null,null,null,null,null,null,null,null,null,null,{"$f":"IF(I29=\"-\",\"-\",IFERROR(VLOOKUP(J29,데이터!$H$2:$I$13,2,FALSE),\"\"))","v":""},{"$f":"IF(OR(J29=\"UNPASS\", J29=\"F\"), \"\", IF(OR(G29=\"산업체취창업특강\", AND(ISNUMBER(MATCH(1, ('(붙임)기업연계교과목 목록'!$B$3:$B$38=D29) * ('(붙임)기업연계교과목 목록'!$C$3:$C$38=E29) * ('(붙임)기업연계교과목 목록'!$D$3:$D$38=G29), 0)))), \"O\", \"\"))","v":""},null,null,"지우기",null,null,null,null,null,null,null,null,null,null,null,null,null,null,null,null,null,null,null,null,null,null,"공통","재료조직및실습","MSA354","-","클  릭",null,"공통","분자생물학","CHA642","-","클  릭",null,"기계공통","응용역학실험","MEC412","-","클  릭",null,"메카","스마트팩토리공정제어","MTC780",3,"클  릭"]
[null,null,null,null,null,null,null,null,null,null,{"$f":"IF(I30=\"-\",\"-\",IFERROR(VLOOKUP(J30,데이터!$H$2:$I$13,2,FALSE),\"\"))","v":""},{"$f":"IF(OR(J30=\"UNPASS\", J30=\"F\"), \"\", IF(OR(G30=\"산업체취창업특강\", AND(ISNUMBER(MATCH(1, ('(붙임)기업연계교과목 목록'!$B$3:$B$38=D30) * ('(붙임)기업연계교과목 목록'!$C$3:$C$38=E30) * ('(붙임)기업연계교과목 목록'!$D$3:$D$38=G30), 0)))), \"O\", \"\"))","v":""},null,null,"지우기",null,null,null,null,null,null,null,null,null,null,null,null,null,null,null,null,null,null,null,null,null,null,"공통","분자생물학","CHA642","-","클  릭",null,"공통","유기고분자소재및실습","CHA401","-","클  릭",null,"기계공통","자동차전자제어","MES421","-","클  릭",null,"메카","반도체공정공학","MTF380",2,"클  릭"]
[null,null,null,null,null,null,null,"학점합계",{"$f":"SUMIFS($I$10:$I$30, $J$10:$J$30, \"<>U\", $J$10:$J$30, \"<>F\")","v":0},"평점",{"$f":"IFERROR(AVERAGE(K10:K30),0)","v":0},"개수",{"$f":"COUNTIF(L10:M30,\"O\")","v":0},null,null,null,null,null,null,null,null,null,null,null,null,null,null,null,null,null,null,null,null,null,null,null,null,"공통","재료화학","CHA950","-","클  릭",null,"공통","자동차재료학","MSA692","-","클  릭",null,"기계공통","IoT메카트로닉스","MES311","-","클  릭",null,"메카","열유체공학시뮬레이션및실습","MTD836",3,"클  릭"]
[null,null,null,null,null,null,null,null,null,null,null,null,null,null,null,null,null,null,null,null,null,null,null,null,null,null,null,null,null,null,null,null,null,null,null,null,null,null,null,null,null,null,null,"공통","재료조직및실습","MSA354","-","클  릭",null,null,null,null,null,null,null,"메카","산업체취창업특강","MCA950",1,"클  릭"]
[null,null,null,null,null,null,null,null,null,null,null,null,null,null,null,null,null,null,null,null,null,null,null,null,null,null,null,null,null,null,null,null,null,null,null,null,null,null,null,null,null,null,null,null,null,null,null,null,null,null,null,null,null,null,null,"메카공통","기계공학실험","MTB472","-","클  릭"]
[null,null,null,null,null,null,null,null,null,null,null,null,null,null,null,null,null,null,null,null,null,null,null,null,null,null,null,null,null,null,null,null,null,null,null,null,null,null,null,null,null,null,null,null,null,null,null,null,null,null,null,null,null,null,null,"메카공통","전자회로기초및실습","MCA333","-","클  릭"]
[null,null,null,null,null,null,null,null,null,null,null,null,null,null,null,null,null,null,null,null,null,null,null,null,null,null,null,null,null,null,null,null,null,null,null,null,null,null,null,null,null,null,null,null,null,null,null,null,null,null,null,null,null,null,null,"메카공통","CNC가공및실습","MTF212","-","클  릭"]
[null,null,null,null,null,null,null,null,null,null,null,null,null,null,null,null,null,null,null,null,null,null,null,null,null,null,null,null,null,null,null,null,null,null,null,null,null,null,null,null,null,null,null,null,null,null,null,null,null,null,null,null,null,null,null,"메카공통","메카트로닉스기초실습","MTA300","-","클  릭"]
[null,null,null,null,null,null,null,null,null,null,null,null,null,null,null,null,null,null,null,null,null,null,null,null,null,null,null,null,null,null,null,null,null,null,null,null,null,null,null,null,null,null,null,null,null,null,null,null,null,null,null,null,null,null,null,"메카공통","CAD/CAM및실습","MTB392","-","클  릭"]
[null,null,null,null,null,null,null,null,null,null,null,null,null,null,null,null,null,null,null,null,null,null,null,null,null,null,null,null,null,null,null,null,null,null,null,null,null,null,null,null,null,null,null,null,null,null,null,null,null,null,null,null,null,null,null,"메카공통","성형해석및실습","MTA472","-","클  릭"]
[null,null,null,null,null,null,null,null,null,null,null,null,null,null,null,null,null,null,null,null,null,null,null,null,null,null,null,null,null,null,null,null,null,null,null,null,null,null,null,null,null,null,null,null,null,null,null,null,null,null,null,null,null,null,null,"메카공통","절삭학및DOE","MTE604","-","클  릭"]
[null,null,null,null,null,null,null,null,null,null,null,null,null,null,null,null,null,null,null,null,null,null,null,null,null,null,null,null,null,null,null,null,null,null,null,null,null,null,null,null,null,null,null,null,null,null,null,null,null,null,null,null,null,null,null,"메카공통","신호시스템및실험","MTA222","-","클  릭"]
[]
[]
[null,null,null,null,null,"이수기준",null,"통과여부"]
[null,null,null,null,null,"15학점 이상",null,{"$f":"IF(I31>=15,\"통과\",\"미통과\")","v":"미통과"}]
[null,null,null,null,null,"트랙교과목 평점 3.2 이상",null,{"$f":"IF(K31>=3.2,\"통과\",\"미통과\")","v":"미통과"}]
[null,null,null,null,null,"기업연계교과목 2과목 이상 이수",null,{"$f":"IF(M31>=2,\"통과\",\"미통과\")","v":"미통과"}]
[null,null,null,null,null,"최종통과여부",null,{"$f":"IF(COUNTIF(H44:I46,\"통과\")>=3,\"최종통과\",\"미통과\")","v":"미통과"}]

{"sheet":"(붙임)기업연계교과목 목록","index":2,"n_rows":38,"n_cols":9,"rows_kept":38,"cut":false,"hidden":false,"merged":[[0,1,0,8]]}
[null,"기업연계교과목 목록"]
[null,"개설년도","학기","교과목명","과목코드","학점","개설학부","담당교수","기업"]
[null,2023,2,"반도체장비공학","MES520",3,"기계공학부","채석병","한국생산기술연구원/삼성전자"]
[null,2023,2,"자동차공학실습","MEC220",2,"기계공학부","신동호","제일카센터"]
[null,2023,2,"응용역학실험","MEC412",2,"기계공학부","이광주","한국자동차연구원"]
[null,2023,2,"자동차전자제어","MES421",3,"기계공학부","유승한","한국자동차연구원"]
[null,2023,2,"IoT메카트로닉스","MES311",3,"기계공학부","유승열","㈜제일전기기술단"]
[null,2023,2,"디지털회로설계및실습","MCA285",3,"메카트로닉스공학부","성상만","㈜프로랩"]
[null,2023,2,"기계공학실험","MTB472",2,"메카트로닉스공학부","이종욱","두성사이언스"]
[null,2023,2,"센서및계측공학","MCA658",3,"메카트로닉스공학부","이병렬","아인소프트"]
[null,2023,2,"전자회로기초및실습","MCA333",3,"메카트로닉스공학부","강기호","아인소프트"]
[null,2023,2,"CNC가공및실습","MTF212",2,"메카트로닉스공학부","황중기","푸름기계기술"]
[null,2023,2,"메카트로닉스기초실습","MTA300",3,"메카트로닉스공학부","황중기/정승현","푸름기계기술"]
[null,2023,2,"제조인공지능","MTC630",3,"메카트로닉스공학부","정승현","한국생산기술연구원"]
[null,2023,2,"반도체소자","MSA765",3,"에너지신소재화학공학부","김영철","원익머트리얼즈"]
[null,2023,2,"유기화학및실습Ⅱ","CHA151",2,"에너지신소재화학공학부","박수민","한국화학연구원/롯데케미칼"]
[null,2023,2,"분자생물학","CHA642",3,"에너지신소재화학공학부","박수민","한국과학기술연구원"]
[null,2023,2,"재료화학","CHA950",3,"에너지신소재화학공학부","배진우","엠투엔코리아"]
[null,2023,2,"표면공학및실습","MSA631",2,"에너지신소재화학공학부","김상호","SKHynix"]
[null,2023,2,"광전자공학","IFB440",3,"전기전자통신공학부","박종운","더원과학"]
[null,2023,2,"전기자기학Ⅱ","IFA155",3,"전기전자통신공학부","안치형","씨투씨테크/티제이노베이션"]
[null,2024,1,"PLC제어및응용","MEH361",3,"기계공학부","유승열","㈜제일전기기술단"]
[null,2024,1,"스마트재료응용","MEE451",3,"기계공학부","유형민","㈜리나솔루션"]
[null,2024,1,"기초기계공학실험","MEB400",2,"기계공학부","김승모","두성사이언스"]
[null,2024,1,"반도체패키징","MES530",3,"기계공학부","채석병","삼성전자"]
[null,2024,1,"반도체미세기계가공","MTS420",3,"메카트로닉스공학부","김종팔","세미파이브"]
[null,2024,1,"CAD/CAM및실습","MTB392",3,"메카트로닉스공학부","황중기","지안"]
[null,2024,1,"성형해석및실습","MTA472",3,"메카트로닉스공학부","민동균","㈜솔루션랩"]
[null,2024,1,"절삭학및DOE","MTE604",2,"메카트로닉스공학부","민동균","주식회사 씽크렉스"]
[null,2024,1,"신호시스템및실험","MTA222",3,"메카트로닉스공학부","김노유","LG에너지솔루션"]
[null,2024,1,"반도체공정및실습","MSA911",3,"에너지신소재화학공학부","김영철","SA LAB"]
[null,2024,1,"고분자공학및실습Ⅰ","CHA210",3,"에너지신소재화학공학부","배진우","한국화학연구원"]
[null,2024,1,"유기고분자소재및실습","CHA401",3,"에너지신소재화학공학부","배진우","엠투엔코리아"]
[null,2024,1,"자동차재료학","MSA692",3,"에너지신소재화학공학부","김상호","한국자동차연구원"]
[null,2024,1,"재료조직및실습","MSA354",3,"에너지신소재화학공학부","채수상","㈜신영사이언스"]
[null,2024,1,"반도체소재개론","CHA500",3,"에너지신소재화학공학부","정영미","㈜청아"]
[null,2024,1,"전자회로응용및실습","IFA630",3,"전기전자통신공학부","장재영","㈜제이에이취엔지니어링"]
[null,2024,1,"디스플레이공학","IFE570",3,"전기전자통신공학부","박종운","충남테크노파크"]

{"sheet":"교과목시트","index":3,"n_rows":32,"n_cols":23,"rows_kept":32,"cut":false,"hidden":true,"merged":[[1,11,1,16],[1,17,2,19],[1,20,2,22],[2,2,2,4],[2,5,2,7],[2,8,2,10],[2,11,2,13],[2,14,2,16],[1,2,1,10]]}
[]
[null,null,"전기전자정보통신공학부",null,null,null,null,null,null,null,null,"에너지신소재공학부",null,null,null,null,null,"기계공학부",null,null,"메카트로닉스공학부"]
[null,null,"전자공학전공",null,null,"정보통신공학전공",null,null,"전기공학전공",null,null,"에너지신소재공학전공",null,null,"화학생명공학전공"]
[null,null,"지능형반도체트랙","교과목코드","학점","지능형시스템트랙","교과목코드","학점","전력반도체시스템트랙","교과목코드","학점","반도체소재트랙","교과목코드","학점","반도체화학트랙","교과목코드","학점","반도체기계트랙","교과목코드","학점","반도체장비트랙","교과목코드","학점"]
[null,null,"전자공학실습","IFB223",2,"회로이론","IFC122",3,"전기자기학1","IFA141",3,"재료과학1","MSA251",3,"물리화학및실습","CHA450",3,"기계공작법","MEC372",3,"재료역학","MTB302",3]
[null,null,"회로이론","IFB120",3,"회로이론실습","IFC125",1,"전기공학실습1","IFA243",3,"재료공학실습1","MSA265",3,"유기화학및실습1","CHA141",3,"열역학","MEB331",3,"열역학","MTB492",2]
[null,null,"디지털공학및실습","IFB163",3,"기초ICT공학및실습","IFC511",3,"교류회로이론","IFA260",3,"CAD실습","MSA221",3,"분석화학","CHA131",3,"재료역학","MEB311",3,"열역학","MTB493",3]
[null,null,"반도체소자","IFE240",3,"인터네트워킹실습","IFC374",2,"디지틀공학","IFA131",3,"기초전기전자실습","MSA919",3,"공학수학","BSM091",3,"공학수학1","CCT610",3,"반도체소자","MTS110",3]
[null,null,"전자회로","IFB150",3,"전자회로및실습","IFC163",4,"전기공학실습2","IFA253",3,"재료과학2","MSA312",3,"유기화학및실습2","CHA151",3,"동역학","MEB321",3,"인공지능개론","MTB570",3]
[null,null,"디지털시스템설계및실습","IFB172",3,"마이크로프로세서및실습","IFC181",3,"전자회로","IFA151",3,"재료물리학","MSA981",3,"유체공학및실습","CHA421",3,"공학수학2","CCT620",3,"회로이론및실습","MTF294",3]
[null,null,"회로망이론","IFB500",3,"통신공학","IFC200",3,"제어공학","IFA440",3,"재료열역학","MSA240",3,"재료화학","CHA950",3,"기초제어실습","MEC250",2,"동역학","MTB325",3]
[null,null,"통신공학","IFB201",3,"디지털통신및실습","IFC251",3,"전기자기학2","IFA155",3,"재료공학실습2","MSA305",3,"기기분석및실습","CHA202",3,"유체역학","MEB341",3,"유체역학","MTD843",3]
[null,null,"마이크로프로세서및실습","IFB412",3,"통신신호처리및실습","IFC231",3,"마이크로프로세서및실습","IFA182",3,"재료기기분석및실습","MSA874",3,"화공열역학","CHA432",3,"기계재료학","MEC366",2,"유체역학","MTD844",2]
[null,null,"고급전자회로","IFB270",3,"컴퓨터비전및실습","IFC560",3,"전력전자공학및실습","IFA301",3,"산업체취창업특강","MSA100",2,"반도체소재개론","CHA500",3,"기계요소설계","MEC441",3,"디지털회로설계및실습","MCA285",3]
[null,null,"광전자공학","IFB440",3,"임베디드응용및실습","IFC415",3,"자동화공학및실습","IFA353",3,"결정구조학","ENE311",3,"열물질전달및실습","CHA712",3,"기초기계공학실험","MEB400",2,"마이크로프로세서및실습1","MTB428",3]
[null,null,"반도체공정및실습","IFE551",3,"IoT무선네트워크","IFC422",3,"공학설계","IFA475",1,"전자기재료학1","MSA382",3,"고분자공학및실습1","CHA210",3,"수치해석및실습","MEB600",3,"기계제어공학1","MEC451",3]
[null,null,"디지털신호처리및실습","IFB296",4,"사물인터넷및실습","IFC486",3,"임베디드응용및실습","IFA193",3,"반도체소자","MSA765",3,"산업체취창업특강","CHA960",2,"열전달","MEC431",3,"반도체공정및실습","CCT348",3]
[null,null,"디지털신호처리및실습","IFB294",4,"무선통신","IFC357",3,"제어시스템설계","IFA291",3,"에너지소자기초및실습","ENE332",3,"전기화학","CHA630",3,"열유체공학실험","MEC402",2,"로봇기구설계및해석","MTC620",3]
[null,null,"공학설계","IFB385",1,"공학설계","IFC444",1,"전동기구동및실습","IFA361",3,"표면공학및실습","MSA631",3,"에너지열역학","CHA702",3,"반도체공정및실습","MES510",3,"전자회로응용및실습","MCA382",3]
[null,null,"졸업설계","IFA495",6,"이동통신","IFC341",3,"전기신호처리","IFA620",3,"나노기술과재료","MSA520",3,"에너지소재분석및실습","CHA601",3,"마이크로시스템설계","MEF511",3,"기계요소설계","MTB419",3]
[null,null,"반도체장비공학","IFE610",3,"산업체취창업특강","IFE131",1,"졸업설계","IFA495",6,"전자기재료학2","MSA931",3,"분리·공정제어","CHA476",3,"산업체취창업특강","MEC960",1,"반도체장비공학","MTS100",3]
[null,null,"산업체취창업특강","IFE131",1,"머신러닝","IFC550",3,"무선전력전송이해및기초설계","IFA640",3,"반도체공정및실습","MSA911",3,"화학반응공학","CHA470",3,"PLC제어및응용","MEH361",3,"제조인공지능","MTC630",3]
[null,null,"디스플레이공학","IFE570",3,"RF회로설계","IFE450",3,"산업체취창업특강","IFE131",1,"플라즈마공학","MSA960",3,"무기화학1","CHA691",3,"정밀금형설계","MEF741",3,"기계진동학","MTB433",3]
[null,null,null,null,null,null,null,null,"(인턴및)HRD현장실습","CCT015",2,null,null,null,"화학공정설계및실습","CHA411",3,"반도체패키징","MES530",3,"센서및계측공학","MCA658",3]
[null,null,null,null,null,null,null,null,"(인턴및)HRD현장실습","IPP200",2,null,null,null,"스마트소재","CHA243",3,"마이크로나노생산","MEE460",3,"반도체미세기계가공","MTS420",3]
[null,null,null,null,null,null,null,null,null,null,null,null,null,null,null,null,null,"반도체장비공학","MES520",3,"센서및액추에이터실험","MCA657",2]
[null,null,null,null,null,null,null,null,null,null,null,null,null,null,null,null,null,null,null,null,"메카니즘설계및실습","MCA640",3]
[null,null,null,null,null,null,null,null,null,null,null,null,null,null,null,null,null,null,null,null,"반도체패키징","MTS120",3]
[null,null,null,null,null,null,null,null,null,null,null,null,null,null,null,null,null,null,null,null,"스마트팩토리공정제어","MTC780",3]
[null,null,null,null,null,null,null,null,null,null,null,null,null,null,null,null,null,null,null,null,"반도체공정공학","MTF380",2]
[null,null,null,null,null,null,null,null,null,null,null,null,null,null,null,null,null,null,null,null,"열유체공학시뮬레이션및실습","MTD836",3]
[null,null,null,null,null,null,null,null,null,null,null,null,null,null,null,null,null,null,null,null,"산업체취창업특강","MCA950",1]

{"sheet":"데이터","index":4,"n_rows":13,"n_cols":13,"rows_kept":13,"cut":false,"hidden":true,"merged":[]}
[null,null,null,null,null,null,null,null,null,null,"트랙","학부","세부전공"]
[null,"학부","전전통세부","에신화세부","기계세부","메카세부",null,"학점","환산학점",null,"지능형반도체트랙","전기전자통신공학부","전자"]
[null,"전기전자통신공학부","전기","에너지신소재공학","기계공학부","생산",null,"A+",4.5,null,"지능형시스템트랙","전기전자통신공학부","정보통신"]
[null,"에너지신소재화학공학부","전자","화학생명공학",null,"제어",null,"A0",4,null,"전력반도체시스템트랙","전기전자통신공학부","전기"]
[null,"기계공학부","정보통신",null,null,"디지털",null,"B+",3.5,null,"반도체소재트랙","에너지신소재화학공학부","에너지신소재공학"]
[null,"메카트로닉스공학부",null,null,null,null,null,"B0",3,null,"반도체화학트랙","에너지신소재화학공학부","화학생명공학"]
[null,null,null,null,null,null,null,"C+",2.5,null,"반도체기계트랙","기계공학부","기계공학부"]
[null,null,null,null,null,null,null,"C0",2,null,"반도체장비트랙","메카트로닉스공학부","생산/제어/디지털"]
[null,null,null,null,null,null,null,"D+",1.5]
[null,null,null,null,null,null,null,"D0",1]
[null,null,null,null,null,null,null,"F",0]
[null,null,null,null,null,null,null,"PASS","-"]
[null,null,null,null,null,null,null,"UNPASS","-"]